bitfinex/quotes_ETHUSD_20250403
["timestamp","ask_amount","ask_price","bid_price","bid_amount"]
[1743673327343,6.95859708,1819.9,1819.6,0.55]
[1743673327573,12.45355708,1819.9,1819.6,0.55]
[1743673327742,12.4397339,1819.9,1819.6,0.55]
[1743673328145,5.50898318,1819.8,1819.6,0.55]
[1743673328365,5.50898318,1819.8,1819.2,18.50484185]
[1743673328366,5.49594,1819.6,1819.2,5.49681]
[1743673328638,0.31689215,1819.5,1819.3,0.55]
[1743673328835,0.31689215,1819.5,1819.2,5.49681]
[1743673329041,0.31689215,1819.5,1819.3,0.55]
[1743673329544,0.31689215,1819.5,1819.3,6.04661]
[1743673331964,0.31689215,1819.5,1819.3,0.55]
[1743673332325,0.33071533,1819.5,1819.3,0.55]
[1743673333673,7.72634986,1819.5,1819.1,6.27979]
[1743673333964,5.49662,1819.3,1819.0,5.49742]
[1743673334259,0.31550906,1819.2,1819.0,5.49742]
[1743673335053,0.31550906,1819.2,1819.0,10.9948]
[1743673335240,5.51037318,1819.4,1819.0,10.9948]
[1743673335440,0.86323674,1819.3,1819.0,10.9948]
[1743673339673,0.31219942,1819.3,1819.1,6.04713]
[1743673339882,0.31219942,1819.3,1819.2,5.49692]
[1743673340049,1.91327771,1819.5,1819.2,5.49692]
[1743673340390,0.31175471,1819.4,1819.2,10.99384]
[1743673342075,0.31175471,1819.4,1819.3,6.04661]
[1743673342259,6.0134,1819.6,1819.3,6.04661]
[1743673342260,2.05059657,1819.8,1819.6,5.49569]
[1743673342589,6.17,1819.9,1819.6,10.99128]
[1743673342874,11.78204,1820.0,1819.7,6.04523]
[1743673342875,0.7928,1820.0,1819.7,6.04523]
[1743673343073,1.42151,1820.0,1819.7,11.5405]
[1743673344671,0.62871,1820.0,1819.7,11.5405]
[1743673344859,12.41424,1820.2,1819.9,6.0448]
[1743673345064,6.9203,1820.2,1819.9,11.53945]
[1743673345249,5.49361,1820.3,1820.0,5.49436]
[1743673345576,6.25017,1820.4,1820.1,0.55]
[1743673345739,0.77062318,1820.4,1820.1,6.04407]
[1743673345943,2.21449024,1820.4,1820.1,6.04407]
[1743673346177,2.21449024,1820.4,1820.1,11.53815]
[1743673346985,2.22831342,1820.4,1820.1,6.04407]
[1743673347681,2.22831342,1820.4,1819.7,3.12222926]
[1743673347682,2.22831342,1820.4,1819.6,3.8315]
[1743673347994,5.49453,1820.0,1819.6,14.8228]
[1743673348282,5.50835318,1820.0,1819.6,9.32711]
[1743673348488,5.50835318,1820.0,1819.7,0.55]
[1743673348685,0.8087,1820.1,1819.8,5.49499]
[1743673348875,1.438995,1820.1,1819.8,5.49499]
[1743673349503,1.45281818,1820.1,1819.8,5.49499]
[1743673349992,0.630295,1820.1,1819.8,5.49499]
[1743673350151,0.64411818,1820.1,1819.8,5.49499]
[1743673350554,6.13842818,1820.1,1819.7,11.54064]
[1743673350787,6.86730282,1820.0,1819.7,0.55]
[1743673351252,6.881126,1820.0,1819.7,0.55]
[1743673351683,6.86730282,1820.0,1819.7,6.10034825]
[1743673352052,6.86730282,1820.0,1819.7,6.0454]
[1743673352588,6.881126,1820.0,1819.7,6.0454]
[1743673352793,1.37274282,1820.0,1819.7,6.0454]
[1743673352955,1.37274282,1820.0,1819.7,11.59565818]
[1743673353156,1.37274282,1820.0,1819.7,6.04531]
[1743673353579,1.386566,1820.0,1819.7,6.04531]
[1743673355496,6.881096,1820.0,1819.7,0.55]
[1743673355698,6.50214374,1819.9,1819.7,0.55]
[1743673356588,6.51596692,1819.9,1819.7,0.55]
[1743673357505,12.01091692,1819.9,1819.7,0.55]
[1743673357791,6.50214374,1819.9,1819.7,0.55]
[1743673357984,6.51596692,1819.9,1819.7,0.55]
[1743673359292,6.14675669,1819.8,1819.6,0.55]
[1743673359456,1.13472039,1819.7,1819.6,0.55]
[1743673359656,0.31862039,1819.7,1819.6,0.55]
[1743673365990,7.01294278,1819.9,1819.6,0.55]
[1743673366194,0.31669465,1819.7,1819.6,0.55]
[1743673366394,7.01294278,1819.9,1819.6,0.55]
[1743673366626,0.31669465,1819.7,1819.6,0.55]
[1743673366826,7.01294278,1819.9,1819.6,0.55]
[1743673367027,0.31669465,1819.7,1819.6,0.55]
[1743673367502,7.01294278,1819.9,1819.6,0.55]
[1743673367706,1.01798893,1819.8,1819.6,0.55]
[1743673367900,5.49636,1819.4,1819.1,5.49712]
[1743673368105,0.01382318,1819.3,1819.0,6.30351]
[1743673368339,0.3161514,1819.2,1819.0,6.30338]
[1743673368827,0.3161514,1819.2,1819.1,0.55]
[1743673369900,5.51018318,1819.4,1819.1,0.55]
[1743673370229,0.3161514,1819.3,1819.1,0.55]
[1743673371333,0.3161514,1819.3,1819.1,6.04721]
[1743673374634,0.3161514,1819.3,1819.1,0.55]
[1743673378934,0.3161514,1819.3,1819.2,0.05496741]
[1743673379241,0.3161514,1819.3,1819.2,6.80532]
[1743673379439,5.50940318,1819.7,1819.4,0.55]
[1743673379641,0.55094032,1819.6,1819.4,0.55]
[1743673380009,0.5647635,1819.6,1819.4,0.55]
[1743673380614,0.6881096,1819.9,1819.6,6.04569]
[1743673380806,0.6881096,1819.9,1819.6,6.10064253]
[1743673381408,0.6881096,1819.9,1819.6,6.04569]
[1743673381610,0.70193278,1819.9,1819.6,6.04569]
[1743673383445,0.6881096,1819.9,1819.6,6.04569]
[1743673383645,0.70193278,1819.9,1819.6,6.04569]
[1743673383944,0.6881096,1819.9,1819.6,6.04569]
[1743673384446,0.70193278,1819.9,1819.6,6.04569]
[1743673384744,0.6881096,1819.9,1819.6,6.04569]
[1743673384953,14.78646926,1820.1,1819.8,0.55]
[1743673385247,9.27314,1820.2,1819.8,6.87035]
[1743673385450,0.01382318,1820.1,1819.8,6.87035]
[1743673385853,0.31526231,1820.0,1819.8,6.87035]
[1743673387646,0.31526231,1820.0,1819.8,1.3753]
[1743673387851,6.39209186,1820.0,1819.8,0.55]
[1743673389351,0.31526231,1820.0,1819.9,6.8636]
[1743673389715,6.31841,1820.4,1820.1,0.55]
[1743673389953,0.31526231,1820.3,1820.1,0.55]
[1743673390747,5.82279549,1820.3,1820.1,0.55]
[1743673390951,6.48758504,1820.3,1820.1,0.55]
[1743673391533,6.47376186,1820.3,1820.1,0.55]
[1743673392020,6.48758504,1820.3,1820.1,0.55]
[1743673393354,6.47376186,1820.3,1820.1,0.55]
[1743673393922,6.48758504,1820.3,1820.1,0.55]
[1743673395158,0.6487585,1820.2,1819.8,5.49508]
[1743673395330,5.49453,1820.0,1819.7,5.49537]
[1743673395656,6.62912541,1819.9,1819.6,5.49567]
[1743673395833,6.62912541,1819.9,1819.7,0.55]
[1743673396035,1.13430541,1819.9,1819.7,0.55]
[1743673396243,2.34666695,1819.9,1819.7,0.55]
[1743673397164,1.53216695,1819.9,1819.7,0.55]
[1743673397364,0.31980541,1819.9,1819.7,6.04539]
[1743673403780,0.31980541,1819.9,1819.8,6.10005003]
[1743673403937,0.31980541,1819.9,1819.8,6.8748]
[1743673404137,11.66332,1820.4,1820.0,5.49423]
[1743673404372,0.31886731,1820.3,1820.1,6.04417]
[1743673405400,2.06643204,1820.3,1820.1,6.04417]
[1743673406065,0.31886731,1820.3,1820.1,12.30737]
[1743673406235,0.31886731,1820.3,1820.1,6.8132]
[1743673406774,0.31886731,1820.2,1820.1,6.8132]
[1743673407164,5.49304,1820.5,1820.1,6.86813503]
[1743673407471,0.31886731,1820.2,1820.1,6.86813503]
[1743673407638,0.549304,1820.4,1820.1,6.86813503]
[1743673407839,0.3210889,1820.2,1820.1,6.86813503]
[1743673408083,0.549304,1820.4,1820.2,5.49389]
[1743673408236,6.042744,1820.4,1820.1,0.55]
[1743673408661,6.05656718,1820.4,1820.1,0.55]
[1743673408973,6.05656718,1820.4,1820.1,6.04418]
[1743673409575,6.042744,1820.4,1820.1,6.04418]
[1743673409759,6.9003844,1820.3,1820.0,5.49449]
[1743673410072,0.6042744,1820.3,1820.1,5.49409]
[1743673412675,0.6042744,1820.3,1819.9,1.3425]
[1743673412676,0.6042744,1820.3,1819.9,6.28727]
[1743673412978,5.49383,1820.3,1819.9,6.2872]
[1743673413338,5.50765318,1820.3,1819.9,6.2872]
[1743673413778,5.50765318,1820.3,1820.0,5.49443]
[1743673414342,5.49423,1820.1,1819.7,10.99064]
[1743673414548,5.50805318,1820.1,1819.8,0.55]
[1743673414758,6.6890435,1820.1,1819.8,0.55]
[1743673415159,5.4946,1820.0,1819.6,6.26298]
[1743673415365,6.27139,1819.9,1819.6,5.49558]
[1743673415564,6.27139,1819.9,1819.7,0.55]
[1743673415783,0.32015094,1819.8,1819.7,0.55]
[1743673421205,0.32015094,1819.8,1819.7,6.04541]
[1743673421519,0.32015094,1819.8,1819.7,10.98673]
[1743673421706,0.81012318,1820.2,1819.9,5.49463]
[1743673421860,0.81012318,1820.2,1819.9,10.98931]
[1743673422059,0.3175342,1820.1,1819.9,10.98931]
[1743673422554,0.3175342,1820.1,1820.0,6.0445]
[1743673422788,11.66385,1820.3,1820.0,6.0445]
[1743673423006,0.3175342,1820.1,1820.0,6.0445]
[1743673423207,13.46239,1820.3,1820.0,6.0445]
[1743673423358,0.3175342,1820.1,1820.0,6.0445]
[1743673423553,13.46239,1820.3,1820.0,6.0445]
[1743673423758,0.3175342,1820.2,1820.0,6.0445]
[1743673423959,0.3175342,1820.2,1820.1,6.0442]
[1743673424404,0.84202318,1820.4,1820.1,6.0442]
[1743673424575,0.3175342,1820.2,1820.1,6.0442]
[1743673424784,2.0248495,1820.4,1820.1,11.53828]
[1743673424988,0.3175342,1820.2,1820.1,11.53828]
[1743673425207,0.7627,1820.6,1820.1,0.55]
[1743673425417,5.49268,1820.7,1820.3,6.30366]
[1743673425588,5.50655318,1820.6,1820.4,0.55]
[1743673425771,12.139598,1820.7,1820.4,0.55]
[1743673426110,5.50653318,1820.6,1820.4,0.55]
[1743673426315,10.99949318,1820.6,1820.2,6.30389]
[1743673426612,0.8127,1820.5,1820.2,5.49379]
[1743673426824,1.992537,1820.5,1820.2,5.49379]
[1743673428211,7.49936018,1820.5,1820.2,0.55]
[1743673428537,7.49936018,1820.5,1819.9,6.28626]
[1743673428538,2.00636018,1820.5,1819.9,6.28626]
[1743673428677,5.49403,1820.2,1819.8,5.49503]
[1743673429107,11.81116,1820.2,1819.8,5.49503]
[1743673430111,0.01382318,1820.1,1819.8,5.49503]
[1743673430992,0.31980516,1820.0,1819.8,5.49503]
[1743673431193,0.78832318,1819.9,1819.5,0.7738]
[1743673431427,6.28340318,1819.9,1819.4,5.49616]
[1743673431605,0.31901544,1819.8,1819.5,5.49574]
[1743673431781,0.31901544,1819.8,1819.6,0.55]
[1743673433624,0.31901544,1819.8,1819.7,6.04541]
[1743673434198,5.50834318,1820.0,1819.7,6.04541]
[1743673434420,0.31901544,1819.8,1819.7,6.04541]
[1743673434607,5.50834318,1820.0,1819.7,6.04541]
[1743673434806,0.31901544,1819.8,1819.7,6.04541]
[1743673435329,6.6845835,1820.0,1819.7,6.04541]
[1743673435491,0.31901544,1819.9,1819.7,6.04541]
[1743673435698,0.31901544,1819.9,1819.8,0.55]
[1743673435895,0.7598,1820.1,1819.6,11.78572]
[1743673436121,5.50838318,1820.0,1819.7,0.55]
[1743673436326,5.82739862,1820.0,1819.7,0.55]
[1743673438738,5.82738862,1820.0,1819.6,0.55]
[1743673438908,6.31432,1819.9,1819.6,0.55]
[1743673439099,7.52849086,1819.9,1819.6,0.55]
[1743673439494,0.31901544,1819.8,1819.6,0.55]
[1743673440596,0.31901544,1819.8,1819.6,6.04569]
[1743673440796,0.31901544,1819.8,1819.6,11.54138]
[1743673440997,0.31901544,1819.8,1819.6,6.04569]
[1743673441222,6.28484,1819.9,1819.6,0.55]
[1743673441454,0.31901544,1819.7,1819.6,0.55]
[1743673441647,0.628484,1819.8,1819.6,0.55]
[1743673442162,0.31901544,1819.7,1819.6,0.55]
[1743673443867,0.31901544,1819.7,1819.5,5.4959]
[1743673446576,0.31901544,1819.7,1819.6,0.55]
[1743673446779,0.31901544,1819.7,1819.6,6.1006653]
[1743673446991,5.50839318,1820.0,1819.6,11.5963753]
[1743673447147,0.31817602,1819.7,1819.6,11.54142]
[1743673447672,1.24236755,1820.0,1819.7,5.49529]
[1743673447870,1.25619073,1820.0,1819.7,5.49529]
[1743673449458,6.75071073,1820.0,1819.7,5.49529]
[1743673449874,12.24541073,1820.0,1819.6,6.80811]
[1743673450075,1.22454107,1819.9,1819.6,6.80811]
[1743673451294,1.22454107,1819.9,1819.6,6.80811]
[1743673451777,1.23836425,1819.9,1819.6,6.80811]
[1743673452092,1.22454107,1819.9,1819.6,6.80811]
[1743673452594,1.23836425,1819.9,1819.6,6.80811]
[1743673453574,1.23836425,1819.9,1819.7,5.49533]
[1743673453892,5.49452,1820.0,1819.7,5.49533]
[1743673454054,5.50834318,1820.0,1819.7,5.49533]
[1743673454967,11.00299318,1820.0,1819.7,5.49533]
[1743673455167,10.98917,1820.0,1819.7,5.49533]
[1743673455691,0.7568,1819.8,1819.6,6.04559]
[1743673456695,5.49488,1819.9,1819.6,6.10054226]
[1743673456860,1.86634,1819.9,1819.6,11.59614226]
[1743673457157,1.86634,1819.9,1819.6,11.54119]
[1743673458999,1.76634,1819.9,1819.6,11.54119]
[1743673459582,0.99894,1819.9,1819.6,11.54119]
[1743673460399,0.82792318,1820.0,1819.7,5.49533]
[1743673460598,6.26803,1820.2,1819.9,0.55]
[1743673460889,6.28185318,1820.2,1819.9,6.04472]
[1743673461295,0.78782318,1820.2,1819.9,0.55]
[1743673461500,6.26889,1819.9,1819.6,0.55]
[1743673461795,6.28271318,1819.9,1819.6,0.55]
[1743673461995,6.28271318,1819.9,1819.6,6.04567]
[1743673463295,11.77768318,1819.9,1819.6,6.04567]
[1743673463503,6.26889,1819.9,1819.6,6.04567]
[1743673463661,0.626889,1819.8,1819.6,6.04567]
[1743673464495,6.122149,1819.8,1819.4,6.25545]
[1743673464800,0.626889,1819.8,1819.6,0.55]
[1743673465282,0.626889,1819.8,1819.6,6.04562]
[1743673465489,0.626889,1819.8,1819.6,0.55]
[1743673465798,0.64071218,1819.8,1819.6,0.55]
[1743673466699,0.626889,1819.8,1819.6,0.55]
[1743673469099,0.78782318,1819.9,1819.6,6.04567]
[1743673469270,6.31589318,1820.0,1819.7,5.49541]
[1743673469598,0.8075,1820.1,1819.8,6.0449]
[1743673469796,0.82132318,1820.1,1819.8,6.0449]
[1743673469976,2.0022815,1820.1,1819.8,6.0449]
[1743673470300,1.98845832,1820.1,1819.8,6.0449]
[1743673470800,2.0022815,1820.1,1819.8,6.0449]
[1743673471101,1.98845832,1820.1,1819.8,6.0449]
[1743673472515,1.98845832,1820.1,1819.8,11.53988]
[1743673472897,2.0022815,1820.1,1819.8,11.53988]
[1743673473199,1.98845832,1820.1,1819.8,11.53988]
[1743673473580,1.18095832,1820.1,1819.8,11.53988]
[1743673473974,0.81472318,1820.2,1819.8,0.55]
[1743673474180,0.7525,1820.4,1820.1,5.4941]
[1743673474387,6.24599,1820.4,1820.0,6.0445]
[1743673474606,11.73953,1820.4,1820.0,11.53887]
[1743673474805,1.173953,1820.3,1820.0,11.53887]
[1743673475188,1.173953,1820.3,1820.2,0.55]
[1743673475702,1.49341282,1820.3,1820.2,0.55]
[1743673476104,0.31945982,1820.3,1820.2,0.55]
[1743673484333,10.98627,1820.5,1820.2,0.55]
[1743673484544,0.32039773,1820.3,1820.2,0.55]
[1743673484726,10.98627,1820.5,1820.2,0.55]
[1743673485201,0.32039773,1820.4,1820.2,1.3657]
[1743673486736,5.81379773,1820.4,1820.2,1.3657]
[1743673486910,5.82762091,1820.4,1820.2,1.3657]
[1743673487345,5.81379773,1820.4,1820.2,1.3657]
[1743673487948,0.32039773,1820.4,1820.2,6.85958]
[1743673488847,0.32039773,1820.4,1820.2,1.3657]
[1743673489171,1.4510595,1820.4,1820.2,0.8157]
[1743673489636,1.4510595,1820.4,1820.2,6.30957]
[1743673491556,1.4510595,1820.4,1820.2,0.8157]
[1743673493467,0.32039773,1820.4,1820.3,0.55]
[1743673493631,18.32308118,1820.7,1820.3,6.04359]
[1743673493963,0.32182925,1820.4,1820.3,11.53718]
[1743673494116,12.139258,1820.7,1820.3,11.53718]
[1743673494315,0.32182925,1820.4,1820.3,11.53718]
[1743673494520,12.139258,1820.7,1820.3,11.53718]
[1743673494839,1.53575505,1820.6,1820.3,11.53718]
[1743673495053,1.54957823,1820.6,1820.3,11.53718]
[1743673495274,1.53575505,1820.6,1820.3,11.53718]
[1743673496449,1.54957823,1820.6,1820.3,11.53718]
[1743673496650,6.24909,1820.5,1820.3,0.55]
[1743673496855,7.02895682,1820.5,1820.3,0.55]
[1743673497066,7.02895682,1820.5,1820.2,0.55]
[1743673497067,0.32182925,1820.4,1820.2,0.55]
[1743673497377,5.49368,1820.3,1819.9,5.4947]
[1743673497518,6.25007,1820.2,1819.9,10.98938]
[1743673497723,6.57313311,1820.2,1819.9,10.98938]
[1743673497938,6.58695629,1820.2,1819.9,5.49468]
[1743673498136,7.79501892,1820.2,1819.9,5.49468]
[1743673498324,7.78119574,1820.2,1819.9,5.49468]
[1743673499252,7.79501892,1820.2,1819.9,5.49468]
[1743673500573,5.49423,1820.1,1819.9,0.55]
[1743673500924,5.50805318,1820.1,1819.9,0.55]
[1743673501161,0.32306311,1820.0,1819.9,0.55]
[1743673501368,0.32306311,1820.0,1819.8,6.31361]
[1743673501538,0.32306311,1820.0,1819.7,10.9907]
[1743673502165,0.32306311,1820.0,1819.6,6.28486]
[1743673502366,5.49512,1819.8,1819.5,5.49598]
[1743673502583,5.49512,1819.8,1819.4,6.2855]
[1743673502584,6.1360375,1819.8,1819.4,11.78167]
[1743673502739,0.32143424,1819.7,1819.5,0.55]
[1743673502938,0.32143424,1819.7,1819.4,11.78167]
[1743673503138,0.32143424,1819.7,1819.5,0.55]
[1743673504271,0.33525742,1819.7,1819.5,0.55]
[1743673505167,12.52157459,1819.7,1819.4,5.49617]
[1743673505367,6.25693,1819.6,1819.4,0.55]
[1743673505663,5.82978673,1819.5,1819.2,45.82556]
[1743673506573,5.82978673,1819.5,1818.8,3.0]
[1743673506574,5.49724,1819.1,1818.8,5.49791]
[1743673506868,0.31348404,1819.0,1818.8,5.49791]
[1743673507035,0.31348404,1819.0,1818.7,6.25058]
[1743673507231,5.82486722,1819.0,1818.6,11.81067]
[1743673507768,11.32256722,1819.0,1818.7,0.55]
[1743673507959,11.30874404,1819.0,1818.7,0.55]
[1743673508161,7.02485844,1819.0,1818.7,6.04833]
[1743673508356,0.31348404,1819.0,1818.9,5.49782]
[1743673508559,0.31348404,1819.0,1818.8,5.498]
[1743673508767,0.32730722,1819.0,1818.7,5.49827]
[1743673509153,5.82494722,1819.0,1818.7,5.49827]
[1743673509453,5.81112404,1819.0,1818.7,5.49827]
[1743673509877,0.32730722,1819.0,1818.7,10.99659]
[1743673510175,0.31348404,1819.0,1818.7,5.49827]
[1743673510339,0.31348404,1819.0,1818.7,10.99658]
[1743673510539,0.31348404,1819.0,1818.8,5.5529693]
[1743673510771,0.31348404,1819.0,1818.9,6.04782]
[1743673510984,1.12478404,1819.0,1818.7,6.59197972]
[1743673511140,0.82512318,1819.0,1818.8,0.55]
[1743673511343,0.3113592,1818.9,1818.8,0.55]
[1743673511663,0.3113592,1818.9,1818.7,5.4983]
[1743673512277,0.3113592,1818.9,1818.8,6.04813]
[1743673512501,0.81462318,1819.2,1818.8,7.7581012]
[1743673512780,6.31154318,1819.2,1818.9,6.04776]
[1743673513494,0.7985,1818.8,1818.5,5.49901]
[1743673513771,0.01382318,1818.8,1818.6,5.49859]
[1743673514984,0.01382318,1818.8,1818.5,0.55]
[1743673515169,5.49906,1818.5,1818.2,5.49991]
[1743673515477,0.56372918,1818.4,1818.1,5.60019]
[1743673515678,0.56372918,1818.4,1818.1,0.1]
[1743673515679,0.784,1818.2,1818.1,0.1]
[1743673515882,9.42206408,1818.2,1818.1,0.1]
[1743673516046,14.46421149,1818.2,1818.1,0.1]
[1743673516270,14.45038831,1818.2,1818.1,0.1]
[1743673516672,14.85952795,1818.2,1818.1,0.1]
[1743673517392,14.45038831,1818.2,1818.1,0.1]
[1743673517797,2.82614741,1818.2,1818.1,0.1]
[1743673518016,6.29776318,1818.2,1818.1,0.1]
[1743673518212,9.42206408,1818.2,1818.1,0.1]
[1743673519917,6.32398,1817.7,1817.2,0.8277]
[1743673520095,6.32398,1817.7,1817.1,5.60327]
[1743673520096,5.50223,1817.5,1817.1,5.60327]
[1743673520302,0.01382318,1817.4,1817.1,5.60327]
[1743673520676,0.27131852,1817.3,1817.2,5.50276]
[1743673520893,0.27131852,1817.3,1817.2,6.05276]
[1743673521077,0.01382318,1817.5,1817.2,6.05276]
[1743673521272,0.27131852,1817.4,1817.2,5.50276]
[1743673522096,6.33977318,1817.3,1817.1,0.1]
[1743673522306,0.26958586,1817.2,1817.1,0.1]
[1743673522817,0.26958586,1817.2,1817.1,5.60327]
[1743673522980,0.26958586,1817.2,1817.1,0.1]
[1743673524114,6.43347976,1817.2,1817.1,0.1]
[1743673524513,0.94433294,1817.2,1817.1,0.1]
[1743673525409,0.28340904,1817.2,1817.1,0.65]
[1743673525602,0.26958586,1817.2,1817.1,6.15327]
[1743673525982,0.01382318,1817.4,1817.1,6.15327]
[1743673526484,0.2653316,1817.3,1817.1,11.65636]
[1743673526722,12.46746,1817.8,1817.5,5.50194]
[1743673526917,1.5120776,1817.7,1817.4,5.50231]
[1743673527110,7.0136076,1817.7,1817.4,5.50231]
[1743673527726,7.0136076,1817.7,1817.3,6.05255]
[1743673528017,6.30638,1817.5,1817.1,0.1]
[1743673528186,6.133188,1817.4,1817.1,0.1]
[1743673528386,0.7973,1817.2,1817.1,0.1]
[1743673528821,0.81112318,1817.2,1817.1,0.1]
[1743673529025,1.07749469,1817.2,1817.1,0.1]
[1743673529523,0.28019469,1817.2,1817.1,0.1]
[1743673529928,0.26637151,1817.2,1817.1,0.1]
[1743673530112,0.26637151,1817.2,1817.1,6.15327]
[1743673530514,0.26637151,1817.2,1817.1,0.1]
[1743673530939,6.89792198,1817.2,1817.1,0.1]
[1743673531452,1.39495198,1817.2,1817.1,0.1]
[1743673532447,0.28019469,1817.2,1817.1,0.1]
[1743673532718,0.26637151,1817.2,1817.1,6.15327]
[1743673532936,6.800638,1817.4,1817.2,11.00569]
[1743673533153,6.17,1817.4,1817.3,6.05266]
[1743673533425,6.787,1817.4,1817.2,5.50284]
[1743673533639,6.80082318,1817.4,1817.2,5.50284]
[1743673533927,6.80082318,1817.4,1817.1,6.42376]
[1743673534132,6.80082318,1817.4,1817.1,0.1]
[1743673534133,13.09817318,1817.4,1817.1,0.1]
[1743673534323,5.50274,1817.3,1817.1,0.1]
[1743673534664,6.06706718,1817.2,1817.1,0.1]
[1743673535569,6.84296718,1817.2,1817.1,0.1]
[1743673535856,7.10914063,1817.2,1817.1,0.1]
[1743673538172,16.27914063,1817.2,1817.1,0.1]
[1743673538462,16.26531745,1817.2,1817.1,0.1]
[1743673540517,3.0,1817.1,1816.3,0.8246]
[1743673540762,3.0,1817.1,1816.1,0.1]
[1743673540763,5.50492,1816.6,1816.2,5.50584]
[1743673541051,5.51893318,1816.5,1816.1,6.35625]
[1743673541233,5.50541,1816.4,1816.1,6.35625]
[1743673541429,0.01382318,1816.3,1816.1,0.85]
[1743673541629,5.78131892,1816.3,1816.1,0.1]
[1743673541826,11.28728892,1816.3,1816.1,0.1]
[1743673542025,17.44346574,1816.3,1816.1,0.1]
[1743673542251,11.93749574,1816.3,1816.1,0.1]
[1743673542456,6.69974957,1816.2,1816.1,0.1]
[1743673543030,6.96141531,1816.2,1816.1,0.1]
[1743673543233,6.97523849,1816.2,1816.1,0.1]
[1743673544454,10.09953939,1816.2,1816.1,0.1]
[1743673544953,6.97523849,1816.2,1816.1,0.1]
[1743673546153,1.46923849,1816.2,1816.1,0.1]
[1743673547748,6.97523849,1816.2,1816.1,0.1]
[1743673548670,10.86693939,1816.2,1816.1,0.1]
[1743673549266,5.36093939,1816.2,1816.1,0.1]
[1743673549578,0.27548892,1816.2,1816.1,5.6063]
[1743673549861,0.26166574,1816.2,1816.1,5.6063]
[1743673550223,0.01382318,1816.4,1816.2,5.50596]
[1743673550763,0.25353683,1816.3,1816.2,5.50596]
[1743673552249,0.25353683,1816.3,1816.1,11.1126]
[1743673552664,0.25353683,1816.3,1816.2,5.506]
[1743673554567,0.25353683,1816.3,1816.2,6.3018]
[1743673554956,6.18382318,1816.6,1816.4,5.50514]
[1743673555157,0.25482591,1816.5,1816.4,11.0103]
[1743673555759,0.01382318,1816.7,1816.4,11.0103]
[1743673555960,0.25482591,1816.6,1816.4,11.0103]
[1743673556166,0.01382318,1816.7,1816.4,11.0103]
[1743673556365,5.76001591,1816.5,1816.2,0.7958]
[1743673556562,5.76001591,1816.5,1816.3,5.50552]
[1743673556563,0.8308275,1816.5,1816.3,5.50552]
[1743673556881,0.25482591,1816.5,1816.3,11.01108]
[1743673557066,0.25482591,1816.5,1816.3,5.50552]
[1743673557264,0.25482591,1816.5,1816.3,11.01112]
[1743673557469,0.25482591,1816.5,1816.4,5.50539]
[1743673557678,0.25482591,1816.5,1816.3,5.50552]
[1743673557883,0.01382318,1816.4,1816.3,5.50552]
[1743673558447,0.25482591,1816.4,1816.3,5.50552]
[1743673559178,5.50577,1816.3,1816.1,0.1]
[1743673559356,6.07040018,1816.2,1816.1,0.1]
[1743673559556,0.550577,1816.2,1816.1,0.1]
[1743673559759,0.82140764,1816.2,1816.1,6.4144]
[1743673559960,0.80758446,1816.2,1816.1,6.4144]
[1743673560382,0.80758446,1816.2,1816.1,0.1]
[1743673560577,7.09398446,1816.2,1816.1,0.1]
[1743673560880,0.80758446,1816.2,1816.1,0.1]
[1743673561084,0.82140764,1816.2,1816.1,5.6063]
[1743673561390,0.25700746,1816.2,1816.1,5.6063]
[1743673561776,0.25700746,1816.2,1816.1,0.8616]
[1743673562089,0.25700746,1816.2,1816.1,6.9179]
[1743673562280,0.27083064,1816.2,1816.1,0.8616]
[1743673562481,0.25700746,1816.2,1816.1,0.1]
[1743673563078,0.25700746,1816.2,1816.1,5.6063]
[1743673564370,0.25700746,1816.2,1816.1,6.9718]
[1743673564570,0.01382318,1816.4,1816.2,5.5057]
[1743673564888,6.17,1816.6,1816.4,6.2835]
[1743673565093,1.69025,1816.6,1816.4,0.7782]
[1743673565594,5.50457,1816.7,1816.4,0.7782]
[1743673565799,11.26663917,1816.6,1816.3,6.05556]
[1743673566100,11.26663917,1816.6,1816.3,0.55]
[1743673566592,11.26663917,1816.6,1816.2,6.31344]
[1743673566593,11.0106,1816.5,1816.2,0.8075]
[1743673566772,5.51935318,1816.4,1816.1,5.60629]
[1743673566967,6.62041318,1816.4,1816.1,5.60629]
[1743673567170,5.76278703,1816.3,1816.1,0.1]
[1743673567373,0.01382318,1816.2,1816.1,0.1]
[1743673567576,0.5914842,1816.2,1816.1,0.1]
[1743673567774,6.35454123,1816.2,1816.1,0.1]
[1743673568502,7.13864123,1816.2,1816.1,0.1]
[1743673578014,18.48594213,1816.2,1816.1,0.1]
[1743673578314,18.44631895,1816.2,1816.1,0.1]
[1743673578527,24.61631895,1816.2,1816.1,0.1]
[1743673580714,24.61631895,1816.2,1816.1,1e-05]
[1743673581952,24.61631895,1816.2,1815.2,5.50894]
[1743673581953,6.30085,1815.3,1815.1,0.1]
[1743673582228,17.13291687,1815.2,1815.1,0.1]
[1743673582441,17.11909369,1815.2,1815.1,0.1]
[1743673583210,17.88999369,1815.2,1815.1,0.1]
[1743673584362,24.05999369,1815.2,1815.1,0.1]
[1743673584545,22.82812849,1815.2,1815.1,0.1]
[1743673584968,8.31219849,1815.2,1815.1,0.1]
[1743673585271,8.31219849,1815.2,1815.1,5.60933]
[1743673585272,0.25076279,1815.2,1815.1,5.60933]
[1743673585617,0.01382318,1815.4,1815.1,5.60933]
[1743673585863,0.24182956,1815.3,1815.1,5.60933]
[1743673586167,0.01382318,1815.4,1815.2,5.50903]
[1743673586623,0.24182956,1815.3,1815.1,11.11855]
[1743673586825,0.01382318,1815.4,1815.1,11.11855]
[1743673587122,0.24182956,1815.3,1815.1,11.11855]
[1743673587324,5.50881,1815.3,1815.1,0.1]